bitfinex-derivatives/quotes_SOLF0:USTF0_20241222
["timestamp","ask_amount","ask_price","bid_price","bid_amount"]
[1734857342202,1.7286,184.49,184.38,14.21141089]
[1734857343004,1.621,184.54,184.41,14.21141089]
[1734857343304,1.621,184.54,184.42,7.8529]
[1734857343504,4.3325,184.54,184.47,2.7123]
[1734857343707,4.3325,184.54,184.48,2.94]
[1734857343708,1.621,184.54,184.48,2.94]
[1734857343911,1.621,184.54,184.46,2.94]
[1734857344201,2.7117,184.52,184.45,2.94]
[1734857344395,1.621,184.54,184.45,2.94]
[1734857344906,2.7121,184.49,184.45,2.94]
[1734857345606,1.621,184.54,184.45,2.94]
[1734857346605,2.7119,184.5,184.45,5.6527]
[1734857346901,1.621,184.54,184.45,2.94]
[1734857347105,2.94,184.57,184.45,2.94]
[1734857347303,2.7116,184.53,184.45,2.94]
[1734857347509,2.7116,184.53,184.47,2.7124]
[1734857347807,2.7116,184.53,184.45,2.94]
[1734857348002,2.94,184.57,184.48,2.7122]
[1734857348209,2.7113,184.55,184.49,2.94]
[1734857348709,3.4387,184.58,184.49,2.94]
[1734857348912,2.7114,184.54,184.49,5.6521]
[1734857349508,3.4387,184.58,184.49,2.94]
[1734857350208,2.7118,184.51,184.49,2.94]
[1734857350609,3.4387,184.58,184.49,2.94]
[1734857352209,2.7113,184.55,184.49,2.94]
[1734857352412,3.4387,184.58,184.49,2.94]
[1734857353414,8.88914934,184.56,184.48,2.94]
[1734857354915,2.712,184.5,184.48,2.94]
[1734857355219,8.88914934,184.56,184.48,2.94]
[1734857356418,8.88914934,184.56,184.43,8.88914934]
[1734857356620,8.88914934,184.53,184.42,3.2362]
[1734857356815,4.565,184.52,184.42,6.1762]
[1734857357215,4.565,184.52,184.43,2.713]
[1734857357216,2.7123,184.48,184.43,2.713]
[1734857357614,8.88914934,184.53,184.42,6.1762]
[1734857357817,8.88914934,184.53,184.43,8.88914934]
[1734857358016,2.94,184.55,184.42,6.1762]
[1734857358516,2.712,184.5,184.45,2.7126]
[1734857358723,2.712,184.5,184.46,2.94]
[1734857360220,2.94,184.55,184.46,2.94]
[1734857361920,2.7126,184.46,184.43,2.94]
[1734857362118,1.625,184.57,184.41,2.94]
[1734857362119,2.94,184.51,184.41,2.94]
[1734857362323,2.7129,184.44,184.41,2.94]
[1734857362626,17.57325287,184.5,184.4,2.94]
[1734857362825,2.7125,184.47,184.4,2.94]
[1734857363125,17.16885287,184.47,184.37,2.94]
[1734857363325,2.7136,184.39,184.37,2.94]
[1734857363719,2.94,184.42,184.34,2.94]
[1734857364233,1.6864,184.41,184.34,2.94]
[1734857364420,2.714,184.37,184.33,60.12105034]
[1734857364729,1.6864,184.41,184.32,90.18157551]
[1734857364730,19.18925287,184.41,184.32,2.94]
[1734857364930,4.9604,184.41,184.32,2.94]
[1734857366530,2.714,184.37,184.32,2.94]
[1734857366732,4.9604,184.41,184.32,2.94]
[1734857366932,19.18925287,184.41,184.32,2.94]
[1734857367228,2.7143,184.34,184.3,2.94]
[1734857367625,17.16885287,184.38,184.24,6.1029]
[1734857368026,17.16885287,184.38,184.25,2.94]
[1734857368230,17.16885287,184.38,184.25,5.6556]
[1734857368527,17.16885287,184.38,184.25,2.94]
[1734857369133,2.7148,184.31,184.25,5.6555]
[1734857370034,17.16885287,184.38,184.25,2.94]
[1734857370228,1.0,184.4,184.26,14.22885287]
[1734857370425,3.94,184.4,184.26,14.22885287]
[1734857371135,4.9604,184.41,184.29,14.22885287]
[1734857371336,1.6864,184.41,184.3,4.5472]
[1734857371730,2.7137,184.38,184.32,2.7144]
[1734857372127,2.7137,184.38,184.3,4.5472]
[1734857372426,1.6864,184.41,184.3,4.5472]
[1734857372630,2.7136,184.39,184.33,2.7144]
[1734857372936,2.94,184.44,184.34,2.94]
[1734857373440,14.22885287,184.46,184.34,2.94]
[1734857373637,2.94,184.45,184.34,2.94]
[1734857374138,2.94,184.45,184.34,5.6543]
[1734857375236,2.7136,184.39,184.34,5.6543]
[1734857375434,2.94,184.45,184.34,5.6543]
[1734857376435,2.7135,184.4,184.34,5.6543]
[1734857377835,2.7133,184.42,184.34,2.94]
[1734857378040,2.94,184.45,184.34,2.94]
[1734857379035,15.92005287,184.47,184.34,2.94]
[1734857379342,1.6912,184.47,184.34,2.94]
[1734857379540,1.6912,184.47,184.35,3.4118]
[1734857379740,2.7127,184.45,184.4,2.7134]
[1734857379939,2.7127,184.45,184.4,2.94]
[1734857380140,1.6912,184.47,184.4,2.94]
[1734857380340,2.7124,184.47,184.42,2.7131]
[1734857380843,4.8922,184.56,184.4,2.94]
[1734857380844,17.16885287,184.53,184.4,2.94]
[1734857381037,2.7122,184.49,184.43,2.7129]
[1734857381336,2.7122,184.49,184.44,2.92]
[1734857382934,17.16885287,184.53,184.44,2.92]
[1734857383139,2.7118,184.52,184.44,2.92]
[1734857383537,19.12105287,184.56,184.44,2.92]
[1734857383538,15.80705287,184.56,184.44,2.92]
[1734857383739,2.7113,184.55,184.49,2.712]
[1734857383944,1.5782,184.56,184.49,5.632]
[1734857384443,17.50505287,184.62,184.49,2.92]
[1734857384744,17.50505287,184.62,184.5,1.6292]
[1734857385643,1.5813,184.64,184.5,1.6292]
[1734857386245,2.7106,184.59,184.53,2.7114]
[1734857386542,2.7106,184.59,184.5,1.6292]
[1734857386543,1.5813,184.64,184.54,2.92]
[1734857386742,14.22885287,184.62,184.54,2.92]
[1734857387741,2.7105,184.6,184.54,2.92]
[1734857387942,1.5813,184.64,184.54,2.92]
[1734857389243,14.22885287,184.65,184.55,1.6125]
[1734857389444,2.71,184.63,184.58,2.7107]
[1734857389648,14.22885287,184.65,184.59,2.92]
[1734857389844,14.22885287,184.65,184.58,2.92]
[1734857390344,2.7102,184.62,184.58,2.92]
[1734857391152,14.22885287,184.65,184.58,2.92]
[1734857391342,14.22885287,184.65,184.56,2.92]
[1734857392342,14.22885287,184.65,184.5,15.85805287]
[1734857392343,14.22885287,184.62,184.52,2.92]
[1734857392543,14.22885287,184.59,184.52,2.92]
[1734857392745,1.6132,184.61,184.52,2.92]
[1734857393146,1.6132,184.61,184.52,5.6316]
[1734857393548,2.7109,184.57,184.52,2.92]
[1734857393744,14.22885287,184.59,184.48,4.4517]
[1734857393946,14.22885287,184.59,184.49,2.92]
[1734857394142,17.51545287,184.59,184.49,2.92]
[1734857394347,2.7115,184.53,184.49,2.92]
[1734857394542,17.51545287,184.59,184.49,2.92]
[1734857394747,14.22885287,184.56,184.49,2.92]
[1734857396446,17.51545287,184.59,184.49,2.92]
[1734857397151,2.7114,184.54,184.49,2.92]
[1734857398853,17.51545287,184.59,184.49,2.92]
[1734857399051,2.92,184.58,184.49,2.92]
[1734857399648,2.92,184.58,184.45,1.6941]
[1734857399649,2.7118,184.51,184.46,2.7125]
[1734857399850,14.22885287,184.53,184.41,2.92]
[1734857400149,4.56,184.52,184.41,2.92]
[1734857401349,2.7119,184.51,184.45,2.7125]
[1734857401547,1.64,184.52,184.46,2.92]
[1734857402152,2.712,184.5,184.46,2.92]
[1734857403052,4.3516,184.52,184.46,5.6324]
[1734857403353,1.0,184.57,184.46,2.92]
[1734857403555,2.7112,184.56,184.49,2.712]
[1734857403750,2.7112,184.56,184.5,2.92]
[1734857403947,1.5789,184.58,184.5,2.92]
[1734857404143,2.92,184.57,184.47,2.92]
[1734857404648,14.22885287,184.56,184.47,2.92]
[1734857405053,14.22885287,184.56,184.44,2.92]
[1734857405248,2.712,184.5,184.44,2.7128]
[1734857405445,2.92,184.53,184.43,2.92]
[1734857405644,17.14885287,184.53,184.42,2.92]
[1734857406150,17.14885287,184.53,184.38,14.22885287]
[1734857406342,17.14885287,184.53,184.41,2.92]
[1734857407146,2.7128,184.45,184.41,2.92]
[1734857407346,2.92,184.49,184.39,2.92]
[1734857407552,4.8511,184.48,184.39,2.92]
[1734857409049,1.6016,184.48,184.39,2.92]
[1734857409551,4.314,184.48,184.39,2.92]
[1734857409952,1.6016,184.48,184.39,2.92]
[1734857410555,1.5953,184.53,184.4,3.4269]
[1734857411655,1.5953,184.53,184.39,5.6334]
[1734857411656,2.7129,184.44,184.39,5.6334]
[1734857413456,2.7129,184.44,184.4,2.7134]
[1734857414259,2.713,184.43,184.39,2.92]
[1734857415257,2.713,184.43,184.39,5.6335]
[1734857415758,23.14015047,184.52,184.39,2.92]
[1734857415958,2.92,184.5,184.39,2.92]
[1734857416460,2.7126,184.46,184.41,2.7132]
[1734857417158,1.5953,184.53,184.4,2.92]
[1734857417559,2.7118,184.52,184.46,2.7124]
[1734857417761,1.5953,184.53,184.46,2.92]
[1734857417957,2.92,184.6,184.46,2.92]
[1734857418159,2.7112,184.55,184.51,2.7117]
[1734857418358,2.7112,184.55,184.5,2.92]
[1734857420464,2.7112,184.55,184.5,5.6319]
[1734857420853,2.7112,184.55,184.5,2.92]
[1734857421061,2.711,184.57,184.5,2.92]
[1734857421254,5.1166,184.6,184.5,2.92]
[1734857422958,2.711,184.57,184.52,2.7115]
[1734857423155,2.711,184.57,184.5,2.92]
[1734857423561,2.7108,184.58,184.54,2.7113]
[1734857423757,23.14015047,184.64,184.54,2.92]
[1734857423963,2.92,184.66,184.54,2.92]
[1734857424664,5.0951,184.67,184.54,2.92]
[1734857424665,8.0151,184.67,184.54,2.92]
[1734857425563,2.7102,184.63,184.58,2.7107]
[1734857425960,2.7102,184.63,184.58,5.6307]
[1734857426162,2.7102,184.62,184.58,2.92]
[1734857426661,2.7105,184.6,184.54,5.6312]
[1734857426867,8.0151,184.67,184.54,5.6312]
[1734857427172,23.14015047,184.64,184.54,5.6312]
[1734857427364,23.14015047,184.64,184.54,2.92]
[1734857427663,2.92,184.63,184.54,2.92]
[1734857427867,2.7107,184.59,184.54,2.92]
[1734857428469,2.7107,184.59,184.54,5.6313]
[1734857430270,2.92,184.63,184.56,2.711]
[1734857430565,2.92,184.66,184.56,2.711]
[1734857430770,2.7102,184.62,184.57,2.7109]
[1734857431170,2.92,184.66,184.54,2.92]
[1734857431473,14.21736313,184.65,184.54,2.92]
[1734857431672,14.21736313,184.65,184.55,2.7112]
[1734857431865,14.21736313,184.62,184.5,4.5169]
[1734857432066,17.13736313,184.62,184.5,2.92]
[1734857432265,17.13736313,184.62,184.52,2.7116]
[1734857432461,17.13736313,184.62,184.5,2.92]
[1734857432972,2.7108,184.58,184.53,2.7115]
[1734857434572,17.13736313,184.62,184.5,2.92]
[1734857434775,2.7107,184.59,184.5,2.92]
[1734857435171,17.13736313,184.62,184.5,2.92]
[1734857435371,2.7108,184.58,184.53,2.7114]
[1734857436272,2.7106,184.59,184.54,2.7113]
[1734857436672,2.7106,184.59,184.54,5.6313]
[1734857437075,2.92,184.62,184.54,2.92]
[1734857437278,14.21736313,184.65,184.54,2.92]
[1734857438477,2.7101,184.63,184.58,2.7106]
[1734857440079,2.7101,184.63,184.54,2.92]
[1734857440378,2.7099,184.64,184.59,2.7106]
[1734857440580,2.7099,184.64,184.59,5.6306]
[1734857445180,3.19949152,184.69,184.59,2.92]
[1734857445575,4.9085,184.73,184.6,17.42316313]
[1734857445783,2.7087,184.72,184.6,19.08086313]
[1734857445982,0.19576,184.74,184.63,14.21736313]
[1734857446182,0.19576,184.74,184.67,2.7094]
[1734857446377,0.19576,184.74,184.68,2.92]
[1734857446581,0.19576,184.74,184.69,2.92]
[1734857447688,0.19576,184.74,184.71,2.7087]
[1734857448188,0.19576,184.74,184.7,2.7089]
[1734857448387,0.19576,184.74,184.69,2.92]
[1734857449583,0.19576,184.74,184.7,3.4639]
[1734857449788,0.19576,184.74,184.63,14.21736313]
[1734857449978,0.19576,184.74,184.64,2.92]
[1734857450690,2.7088,184.71,184.66,2.7096]
[1734857451585,2.7087,184.73,184.67,2.7094]
[1734857451781,0.19576,184.74,184.64,2.92]
[1734857452985,2.7089,184.71,184.66,2.7096]
[1734857453187,0.19576,184.74,184.64,2.92]
[1734857453485,14.41312313,184.74,184.64,2.92]
[1734857453786,2.7094,184.67,184.64,2.92]
[1734857453995,2.92,184.73,184.64,2.92]
[1734857454383,5.0996,184.76,184.64,2.92]
[1734857454991,2.7086,184.73,184.64,2.92]
[1734857455188,5.0996,184.76,184.64,2.92]
[1734857456598,5.0996,184.76,184.63,14.21736313]
[1734857456782,5.0996,184.76,184.64,2.92]
[1734857457294,2.7088,184.72,184.67,2.7094]
[1734857457488,5.0996,184.76,184.64,2.92]
[1734857458096,2.7086,184.73,184.66,2.7096]
[1734857458393,5.0996,184.76,184.66,2.7096]
[1734857459097,2.7088,184.72,184.66,2.7096]
[1734857459296,2.92,184.75,184.64,2.92]
[1734857459696,2.7089,184.71,184.65,2.7096]
[1734857460297,2.709,184.7,184.65,2.7096]
[1734857460495,2.709,184.7,184.66,2.7096]
[1734857461499,2.92,184.75,184.61,3.4639]
[1734857461700,2.92,184.75,184.62,2.92]
[1734857462001,2.7088,184.72,184.62,5.63]
[1734857462198,2.92,184.75,184.62,2.92]
[1734857463399,14.21736313,184.74,184.61,2.92]
[1734857463599,14.21736313,184.71,184.54,14.21736313]
[1734857463902,2.7098,184.65,184.6,2.7104]
[1734857464098,2.92,184.7,184.59,2.92]
[1734857464893,15.21736313,184.74,184.6,14.21736313]
[1734857465201,1.0,184.74,184.6,14.21736313]
[1734857465502,2.7087,184.72,184.61,5.1749]
[1734857465692,1.0,184.74,184.61,5.1749]
[1734857466101,2.7089,184.71,184.61,5.1749]
[1734857466898,2.7089,184.71,184.65,2.7096]
[1734857467098,2.7089,184.71,184.65,5.6296]
[1734857467497,2.7089,184.71,184.66,2.7095]
[1734857467700,2.7087,184.73,184.65,2.92]
[1734857468001,2.92,184.75,184.65,2.92]
[1734857468201,2.709,184.7,184.65,5.6296]
[1734857468401,2.92,184.75,184.65,2.92]
[1734857468597,14.21736313,184.74,184.63,2.92]
[1734857468803,14.21736313,184.74,184.62,2.92]
[1734857469003,2.7089,184.71,184.63,2.7099]
[1734857469204,2.92,184.71,184.63,2.7099]
[1734857469506,2.92,184.71,184.62,2.92]
[1734857470207,2.7095,184.67,184.62,5.63]
[1734857471300,2.7095,184.67,184.62,2.71]
[1734857471503,2.92,184.71,184.62,2.71]
[1734857471703,2.7096,184.66,184.61,5.6303]
[1734857472505,2.92,184.66,184.52,60.12105034]
[1734857472710,1.7031,184.65,184.53,2.92]
[1734857472906,5.0305,184.65,184.53,2.92]
[1734857473206,2.92,184.68,184.53,2.92]
[1734857473407,2.92,184.68,184.56,14.21736313]
[1734857473609,2.7097,184.66,184.57,2.92]
[1734857474211,2.7095,184.67,184.57,2.92]
[1734857474410,5.0305,184.72,184.58,1.5745]
[1734857474614,7.9505,184.72,184.59,14.21736313]
[1734857474808,7.9505,184.72,184.59,15.85096313]
[1734857475007,2.7091,184.7,184.59,15.85096313]
[1734857475609,2.7091,184.7,184.65,2.7097]
[1734857479314,5.0305,184.72,184.63,2.92]
[1734857479511,5.0305,184.72,184.61,2.92]
[1734857480004,2.7095,184.67,184.61,5.6302]
[1734857480406,2.7095,184.67,184.61,2.92]
[1734857481517,2.7095,184.67,184.62,2.71]
[1734857484620,2.92,184.66,184.55,2.92]
[1734857485117,2.7098,184.65,184.6,2.7104]
[1734857486209,2.92,184.69,184.59,2.92]
[1734857486613,2.92,184.69,184.6,1.6263]
[1734857487211,5.0305,184.72,184.6,1.6263]
[1734857487212,2.7093,184.68,184.6,1.6263]
[1734857487412,5.0305,184.72,184.6,1.6263]
[1734857487413,1.7031,184.72,184.6,1.6263]
[1734857487617,2.92,184.74,184.61,1.6145]
[1734857488115,10.48817286,184.76,184.62,14.21736313]
[1734857488318,10.48817286,184.76,184.65,14.21736313]
[1734857488619,1.649,184.77,184.66,1.6169]
[1734857488820,1.7113,184.78,184.67,2.92]
[1734857489017,2.708,184.77,184.71,2.7088]
[1734857489217,1.7113,184.78,184.71,2.92]
[1734857490421,2.7084,184.74,184.71,2.92]
[1734857490724,1.7113,184.78,184.68,2.92]
[1734857492123,2.7088,184.72,184.68,2.92]
[1734857492427,14.21736313,184.77,184.68,2.92]
[1734857492622,2.92,184.76,184.65,2.7097]
[1734857493130,14.21736313,184.74,184.65,2.92]
[1734857493331,1.703,184.73,184.61,2.92]
[1734857493524,2.92,184.72,184.61,2.92]
[1734857493829,14.21736313,184.71,184.61,2.92]
[1734857494518,2.7093,184.68,184.62,2.7101]
[1734857496227,2.7093,184.68,184.61,2.92]
[1734857496428,2.7093,184.68,184.63,2.71]
[1734857496623,2.7091,184.69,184.61,2.92]
[1734857497425,2.7091,184.69,184.64,2.7099]
[1734857497929,2.7093,184.68,184.61,2.92]
[1734857498131,2.7093,184.68,184.63,2.7099]
[1734857499621,4.4942,184.72,184.63,2.7099]
[1734857499827,2.7096,184.66,184.61,2.92]
[1734857500124,14.21736313,184.71,184.58,1.6]
[1734857500323,14.21736313,184.71,184.59,2.92]
[1734857500522,4.4942,184.72,184.59,17.13736313]
[1734857500926,2.7093,184.69,184.59,17.13736313]
[1734857501529,2.709,184.7,184.59,17.13736313]
[1734857501726,1.703,184.73,184.62,14.21736313]
[1734857501930,12.10374674,184.76,184.63,4.5562]
[1734857502127,2.7089,184.71,184.63,4.5562]
[1734857502827,2.7089,184.71,184.67,2.7094]
[1734857503029,2.7089,184.71,184.67,5.6094]
[1734857503939,2.7087,184.73,184.68,2.7092]
[1734857506441,1.6107,184.76,184.67,2.7094]
[1734857506638,1.6107,184.76,184.67,5.6094]
[1734857507235,1.6797,184.78,184.67,2.9]
[1734857507541,2.708,184.77,184.67,2.9]
[1734857508142,17.98108556,184.81,184.68,14.21736313]
[1734857508337,7.48803882,184.81,184.68,14.21736313]
[1734857508839,1.84154,184.82,184.68,14.21736313]
[1734857509243,2.7077,184.79,184.75,2.7082]
[1734857509441,1.84154,184.82,184.75,5.6082]
[1734857509842,1.84154,184.82,184.75,2.9]
[1734857510035,1.6213,184.82,184.75,2.9]
[1734857510641,2.7077,184.79,184.75,2.9]
[1734857513945,2.7078,184.78,184.75,2.9]
[1734857516749,1.6213,184.82,184.72,2.9]
[1734857517251,2.7082,184.76,184.72,2.9]
[1734857520057,2.7082,184.76,184.71,2.7088]
[1734857520955,2.7085,184.74,184.7,2.9]
[1734857522251,2.709,184.7,184.66,11.57990122]
[1734857522556,8.87030122,184.76,184.66,2.9]
[1734857522751,1.6459,184.75,184.66,2.9]
[1734857523061,2.7089,184.71,184.66,5.6095]
[1734857524851,1.6459,184.75,184.66,2.9]
[1734857525058,1.6459,184.75,184.68,2.7092]
[1734857525354,4.4784,184.79,184.66,2.9]
[1734857525755,2.7083,184.75,184.66,2.9]
[1734857526554,2.708,184.77,184.68,14.19598457]
[1734857526956,1.579,184.81,184.68,14.19598457]
[1734857527859,2.708,184.77,184.68,14.19598457]
[1734857528357,1.579,184.81,184.68,14.19598457]
[1734857528557,1.579,184.81,184.69,2.9]
[1734857528956,14.19598457,184.78,184.67,2.9]
[1734857529152,2.9,184.77,184.67,2.9]
[1734857529756,2.7088,184.72,184.67,2.9]
[1734857530558,2.709,184.7,184.67,2.9]
[1734857530765,2.709,184.7,184.65,2.7097]
[1734857530965,2.709,184.7,184.65,5.6097]
[1734857531259,1.6739,184.76,184.65,2.9]
[1734857532162,2.9,184.77,184.66,1.7378]
[1734857532363,2.7085,184.74,184.69,2.7091]
[1734857532562,2.7085,184.74,184.69,5.6091]
[1734857533869,2.9,184.77,184.69,2.9]
[1734857534065,2.7089,184.71,184.69,2.9]
[1734857534456,2.9,184.77,184.69,2.9]
[1734857534664,2.7091,184.7,184.65,2.9]
[1734857535271,2.9,184.77,184.65,2.9]
[1734857535668,2.9,184.77,184.69,2.709]
[1734857535864,2.7084,184.75,184.69,5.609]
[1734857536060,2.9,184.77,184.69,5.609]
[1734857536663,2.9,184.77,184.69,2.9]
[1734857537972,2.7085,184.74,184.69,5.6091]
[1734857538964,2.9,184.79,184.69,5.6091]
[1734857539167,14.19598457,184.78,184.66,2.9]
[1734857539568,2.7083,184.75,184.66,2.9]
[1734857539772,14.19598457,184.78,184.68,2.7092]
[1734857540476,2.7086,184.73,184.68,2.7092]
[1734857541467,2.7087,184.72,184.68,2.7092]
[1734857541773,14.19598457,184.78,184.62,14.19598457]
[1734857541973,14.19598457,184.78,184.64,2.9]
[1734857542475,24.66257599,184.78,184.64,2.9]
[1734857542675,14.19598457,184.78,184.65,2.7097]
[1734857542975,0.9578958,184.77,184.65,2.7097]
[1734857543278,0.9578958,184.77,184.64,2.9]
[1734857543569,24.66257599,184.78,184.64,2.9]
[1734857543871,14.19598457,184.78,184.64,2.9]
[1734857544073,2.7087,184.72,184.64,2.9]
[1734857544670,2.7087,184.72,184.67,2.7093]
[1734857545272,2.7088,184.71,184.67,2.7093]
[1734857546172,2.9,184.77,184.63,4.5562]
[1734857546367,14.19598457,184.75,184.63,4.5562]
[1734857546576,2.7097,184.66,184.63,2.9]
[1734857546771,2.7097,184.66,184.61,2.9]
[1734857547275,2.9,184.73,184.61,2.9]
[1734857548175,2.7093,184.69,184.64,2.7097]
[1734857548572,2.7093,184.68,184.64,2.7097]
[1734857549070,2.7093,184.68,184.65,2.9]
[1734857550179,5.1527,184.74,184.65,2.9]
[1734857551482,2.7089,184.71,184.67,2.7094]
[1734857554881,2.7086,184.73,184.69,2.7091]
[1734857555080,2.9,184.8,184.7,2.9]
[1734857555281,2.9,184.8,184.69,2.9]
[1734857555882,14.19598457,184.78,184.65,2.9]
[1734857556386,2.7092,184.69,184.65,2.9]
[1734857559381,2.709,184.71,184.66,2.7095]
[1734857560083,2.709,184.7,184.66,2.7095]
[1734857560588,2.7092,184.69,184.65,2.9]
[1734857560782,1.6859,184.73,184.61,8.87234039]
[1734857560983,1.6859,184.73,184.62,5.6101]
[1734857561287,4.9779,184.73,184.62,5.6101]
[1734857561787,2.7094,184.67,184.62,5.6101]
[1734857562482,4.9779,184.73,184.62,2.9]
[1734857562677,2.7093,184.69,184.62,2.9]
[1734857563386,2.709,184.7,184.62,2.9]
[1734857563776,2.709,184.7,184.65,2.7096]
[1734857565988,2.709,184.7,184.66,2.7095]
[1734857567987,2.709,184.7,184.66,5.6095]
[1734857571789,2.7087,184.72,184.66,2.9]
[1734857572691,8.87234039,184.77,184.66,2.9]
[1734857572884,1.605,184.78,184.66,2.9]
[1734857572885,1.605,184.78,184.67,8.87234039]
[1734857573281,2.7085,184.74,184.69,2.709]
[1734857573485,8.87234039,184.77,184.67,8.87234039]
[1734857573687,11.77234039,184.77,184.66,2.7096]
[1734857573886,2.7093,184.68,184.66,2.9]
[1734857574480,8.87234039,184.74,184.66,2.9]
[1734857574788,2.7092,184.69,184.66,2.9]
[1734857576288,8.87234039,184.76,184.66,5.6095]
[1734857577492,2.7091,184.7,184.66,5.6095]
[1734857578297,8.87234039,184.76,184.66,2.9]
[1734857578489,11.77234039,184.76,184.66,2.9]
[1734857578989,8.87234039,184.76,184.66,2.9]
[1734857579288,8.87234039,184.76,184.69,2.709]
[1734857579494,2.9,184.77,184.66,2.9]
[1734857580292,2.7084,184.75,184.7,2.7089]
[1734857580492,2.9,184.77,184.7,5.6089]
[1734857580795,2.7084,184.75,184.7,5.6089]
[1734857582895,2.7086,184.73,184.7,2.9]
[1734857583195,8.87234039,184.76,184.7,2.9]
[1734857583396,8.87234039,184.76,184.67,2.9]
[1734857583597,2.7087,184.73,184.67,2.9]
[1734857584390,2.7087,184.73,184.69,2.7092]
[1734857584895,2.7085,184.74,184.67,2.9]
[1734857585191,2.7085,184.74,184.67,11.77234039]
[1734857586495,2.7085,184.74,184.7,2.7089]
[1734857587100,2.7089,184.72,184.67,5.6094]
[1734857587701,2.7089,184.71,184.67,5.6094]
[1734857588596,2.7089,184.71,184.68,2.7093]
[1734857590197,2.7089,184.71,184.67,2.9]
[1734857590399,11.77234039,184.76,184.67,5.6095]
[1734857590598,11.77234039,184.76,184.64,8.87234039]
[1734857590599,2.7091,184.7,184.64,8.87234039]
[1734857590901,2.7091,184.7,184.65,2.9]
[1734857591397,2.7091,184.7,184.66,2.7096]
[1734857591803,2.7093,184.69,184.64,8.87234039]
[1734857592010,2.7093,184.69,184.65,2.7098]
[1734857592808,2.7093,184.69,184.64,2.9]
[1734857593107,2.7093,184.69,184.66,2.7096]
[1734857594507,2.7094,184.68,184.64,5.6098]
[1734857595403,8.87234039,184.73,184.62,1.6464]
[1734857595605,2.7097,184.66,184.62,2.7102]
[1734857596909,2.7099,184.65,184.61,2.9]
[1734857597709,2.71,184.64,184.57,1.5903]
[1734857597905,2.71,184.64,184.58,2.9]
[1734857598208,2.7101,184.64,184.59,2.7106]
[1734857598409,2.7101,184.64,184.58,2.9]
[1734857599012,2.7101,184.63,184.59,2.7107]
[1734857599402,8.87234039,184.67,184.56,8.87234039]
[1734857599708,8.87234039,184.67,184.55,2.9]
[1734857599709,8.87234039,184.64,184.55,2.9]
[1734857599909,1.6452,184.63,184.55,2.9]
[1734857600313,4.999,184.63,184.55,2.9]
[1734857600907,2.7107,184.6,184.55,5.6113]
[1734857602901,4.999,184.63,184.55,2.9]
[1734857603108,2.7107,184.59,184.55,2.9]
[1734857603717,4.999,184.63,184.55,2.9]
[1734857604210,1.6452,184.63,184.55,2.9]
[1734857604414,4.3553,184.63,184.58,2.7107]
[1734857604914,2.7103,184.62,184.58,2.7107]
[1734857605115,8.87234039,184.67,184.55,2.9]
[1734857605511,2.7098,184.65,184.57,8.87234039]
[1734857605818,2.7098,184.65,184.6,2.7104]